bitfinex-derivatives/quotes_BTCF0:USTF0_20240902
["timestamp","ask_amount","ask_price","bid_price","bid_amount"]
[1725283884320,0.0034,58321.0,58320.0,0.647938]
[1725283884508,0.089136,58321.0,58320.0,0.447938]
[1725283884909,0.086136,58321.0,58320.0,0.446938]
[1725283885115,0.089136,58321.0,58320.0,0.448938]
[1725283886421,0.089136,58321.0,58320.0,0.3632]
[1725283886608,0.174872,58321.0,58320.0,0.3632]
[1725283887112,0.172872,58321.0,58320.0,0.3632]
[1725283887315,0.174872,58321.0,58320.0,0.0024]
[1725283887522,0.257232,58316.0,58315.0,0.00544574]
[1725283887722,0.257232,58316.0,58314.0,0.00025719]
[1725283887723,0.085771,58297.0,58296.0,0.2]
[1725283888036,0.085771,58297.0,58296.0,0.20513085]
[1725283888320,0.086171,58297.0,58296.0,0.20513085]
[1725283888922,0.086171,58297.0,58296.0,0.21313085]
[1725283889216,0.086171,58297.0,58296.0,0.21513085]
[1725283890608,0.171942,58297.0,58296.0,0.01513085]
[1725283890923,0.086171,58297.0,58296.0,0.21513085]
[1725283891221,0.086171,58297.0,58296.0,0.20513085]
[1725283891409,0.089171,58297.0,58296.0,0.20613085]
[1725283892218,0.090171,58297.0,58296.0,0.20613085]
[1725283893618,0.087171,58297.0,58296.0,0.20513085]
[1725283893919,0.089171,58297.0,58296.0,0.20613085]
[1725283894419,0.091171,58297.0,58296.0,0.20713085]
[1725283895226,0.0054,58297.0,58296.0,0.29290385]
[1725283895426,0.0024,58297.0,58296.0,0.29090385]
[1725283895611,0.0054,58297.0,58296.0,0.29290385]
[1725283897124,0.00025719,58302.0,58301.0,0.085766]
[1725283897325,0.00025719,58302.0,58301.0,0.732332]
[1725283897629,0.00025719,58302.0,58301.0,1.81248941]
[1725283898132,0.3608,58322.0,58301.0,1.81248941]
[1725283898133,0.0004,58316.0,58301.0,1.761126]
[1725283898427,0.085742,58318.0,58313.0,0.3608]
[1725283898630,0.085742,58318.0,58317.0,0.085742]
[1725283900223,0.085745,58315.0,58313.0,0.3608]
[1725283901629,0.087745,58315.0,58313.0,0.3618]
[1725283901832,0.087745,58315.0,58314.0,0.085746]
[1725283902134,0.086745,58315.0,58314.0,0.085746]
[1725283903729,0.086745,58315.0,58314.0,0.086746]
[1725283903730,0.087745,58315.0,58314.0,0.086746]
[1725283904330,0.085745,58315.0,58314.0,0.085746]
[1725283904632,0.087745,58315.0,58314.0,0.086746]
[1725283905229,0.003,58315.0,58314.0,0.087746]
[1725283906929,0.003,58315.0,58314.0,0.086746]
[1725283907122,0.001,58315.0,58314.0,0.085746]
[1725283907322,0.003,58315.0,58314.0,0.085746]
[1725283907742,0.001,58315.0,58314.0,0.085746]
[1725283907937,0.003,58315.0,58314.0,0.085746]
[1725283908431,0.003,58315.0,58314.0,0.171492]
[1725283908626,0.002,58315.0,58314.0,0.171492]
[1725283908819,0.003,58315.0,58314.0,0.171492]
[1725283909021,0.003,58315.0,58314.0,0.685932]
[1725283910323,0.00025719,58323.0,58322.0,0.085735]
[1725283910532,0.00025719,58323.0,58322.0,0.285735]
[1725283911126,0.0028,58327.0,58322.0,0.285735]
[1725283911127,0.0028,58327.0,58326.0,0.085729]
[1725283911335,0.0028,58327.0,58326.0,0.74082655]
[1725283911544,0.0028,58327.0,58326.0,1.85518655]
[1725283912533,0.00025719,58332.0,58331.0,0.171444]
[1725283912834,0.00025719,58332.0,58331.0,0.732244]
[1725283914234,0.3608,58365.0,58341.0,0.085706]
[1725283914430,0.085695,58349.0,58348.0,0.3608]
[1725283916234,0.085695,58349.0,58343.0,0.20025719]
[1725283916235,0.0857,58346.0,58343.0,0.20025719]
[1725283916626,0.0857,58346.0,58343.0,0.28596119]
[1725283917035,0.085701,58345.0,58343.0,0.28596119]
[1725283917333,0.085702,58344.0,58343.0,0.28596119]
[1725283918139,0.085702,58344.0,58343.0,0.28696119]
[1725283918335,0.085702,58344.0,58343.0,0.28796119]
[1725283918843,0.087702,58344.0,58343.0,0.29304428]
[1725283920541,0.087702,58344.0,58343.0,0.29204428]
[1725283920856,0.002,58344.0,58343.0,0.29204428]
[1725283921340,0.004,58344.0,58343.0,0.29404428]
[1725283921733,0.004,58344.0,58343.0,0.29504428]
[1725283921935,0.085698,58348.0,58347.0,0.085698]
[1725283922134,0.085698,58348.0,58347.0,0.646498]
[1725283922334,0.085693,58351.0,58347.0,0.646498]
[1725283922531,0.085693,58351.0,58350.0,0.3608]
[1725283923338,0.00025719,58354.0,58353.0,0.085689]
[1725283923540,0.00025719,58354.0,58353.0,0.285689]
[1725283924431,0.00225719,58354.0,58353.0,0.286689]
[1725283924635,0.08794519,58354.0,58353.0,0.286689]
[1725283924856,0.08794519,58354.0,58353.0,0.287689]
[1725283926438,0.17363319,58354.0,58353.0,0.002]
[1725283926830,0.08794519,58354.0,58353.0,0.002]
[1725283928840,0.08794519,58354.0,58353.0,0.087689]
[1725283929240,0.08794519,58354.0,58353.0,0.002]
[1725283930142,0.17363319,58354.0,58353.0,0.002]
[1725283930450,1.41854119,58354.0,58353.0,0.002]
[1725283931844,0.64716519,58354.0,58353.0,0.002]
[1725283932048,0.08794519,58354.0,58353.0,0.002]
[1725283933545,0.08794519,58354.0,58353.0,0.087689]
[1725283934838,0.08794519,58354.0,58353.0,0.002]
[1725283936441,0.08794519,58354.0,58353.0,0.087689]
[1725283937443,0.08594519,58354.0,58353.0,0.086689]
[1725283937643,0.08794519,58354.0,58353.0,0.087689]
[1725283938757,0.08794519,58354.0,58353.0,0.3628]
[1725283939052,0.17363319,58354.0,58353.0,0.002]
[1725283939259,1.41984119,58354.0,58353.0,0.002]
[1725283939444,1.52984119,58354.0,58353.0,0.002]
[1725283940559,1.64971298,58354.0,58353.0,0.002]
[1725283940850,0.257094,58347.0,58346.0,0.3608]
[1725283941048,0.771254,58347.0,58346.0,0.3608]
[1725283941551,0.863854,58347.0,58346.0,0.3608]
[1725283941751,1.58354191,58347.0,58346.0,0.3608]
[1725283941957,1.463854,58347.0,58346.0,0.3608]
[1725283942253,1.58556361,58347.0,58346.0,0.3608]
[1725283942448,1.465854,58347.0,58346.0,0.3608]
[1725283942648,1.50782703,58347.0,58346.0,0.3608]
[1725283943047,1.465854,58347.0,58346.0,0.3608]
[1725283943752,0.865854,58347.0,58346.0,0.3608]
[1725283944048,0.257106,58344.0,58343.0,0.00025719]
[1725283944256,0.577106,58344.0,58343.0,0.00025719]
[1725283944460,1.691306,58344.0,58343.0,0.00025719]
[1725283944953,0.171404,58344.0,58343.0,0.00025719]
[1725283945394,0.087702,58344.0,58343.0,0.00125719]
[1725283945652,0.091702,58344.0,58343.0,0.00225719]
[1725283946852,0.091702,58344.0,58343.0,0.00265719]
[1725283947056,0.091702,58344.0,58343.0,0.00165719]
[1725283947057,0.087702,58344.0,58343.0,0.00165719]
[1725283947243,0.090702,58344.0,58343.0,0.00265719]
[1725283947750,0.089702,58344.0,58343.0,0.00265719]
[1725283948349,0.085702,58344.0,58343.0,0.00065719]
[1725283948547,0.089702,58344.0,58343.0,0.00265719]
[1725283950253,0.088702,58344.0,58343.0,0.00165719]
[1725283950453,0.089702,58344.0,58343.0,0.00265719]
[1725283950652,0.089702,58344.0,58343.0,0.00165719]
[1725283950653,0.086702,58344.0,58343.0,0.00165719]
[1725283950854,0.089702,58344.0,58343.0,0.00265719]
[1725283951949,0.086702,58344.0,58343.0,0.00165719]
[1725283952150,0.089702,58344.0,58343.0,0.00265719]
[1725283955255,0.086702,58344.0,58343.0,0.00165719]
[1725283955455,0.086702,58344.0,58343.0,0.00265719]
[1725283955456,0.089702,58344.0,58343.0,0.00265719]
[1725283955650,0.175404,58344.0,58343.0,0.00265719]
[1725283955853,0.175404,58344.0,58343.0,0.00165719]
[1725283955854,0.372404,58344.0,58343.0,0.00165719]
[1725283956054,0.375404,58344.0,58343.0,0.00265719]
[1725283956754,0.374404,58344.0,58343.0,0.00165719]
[1725283956952,0.175404,58344.0,58343.0,0.00265719]
[1725283957161,0.089702,58344.0,58343.0,0.00265719]
[1725283957665,0.172404,58344.0,58343.0,0.00165719]
[1725283957958,0.175404,58344.0,58343.0,0.00265719]
[1725283958159,0.089702,58344.0,58343.0,0.00265719]
[1725283958862,0.089702,58344.0,58343.0,0.00165719]
[1725283959056,0.089702,58344.0,58343.0,0.00265719]
[1725283960662,0.086702,58344.0,58343.0,0.00165719]
[1725283960863,0.089702,58344.0,58343.0,0.00265719]
[1725283961163,0.088702,58344.0,58343.0,0.00165719]
[1725283961466,0.088702,58344.0,58343.0,0.00265719]
[1725283961467,0.175404,58344.0,58343.0,0.00265719]
[1725283962161,0.089702,58344.0,58343.0,0.00265719]
[1725283962668,0.175404,58344.0,58343.0,0.00265719]
[1725283962967,0.089702,58344.0,58343.0,0.00265719]
[1725283963566,0.175404,58344.0,58343.0,0.00265719]
[1725283965161,0.172404,58344.0,58343.0,0.00165719]
[1725283965364,0.175404,58344.0,58343.0,0.00265719]
[1725283965765,0.172404,58344.0,58343.0,0.00165719]
[1725283965960,0.175404,58344.0,58343.0,0.00265719]
[1725283967870,0.174404,58344.0,58343.0,0.00165719]
[1725283968062,0.175404,58344.0,58343.0,0.00265719]
[1725283969569,0.461106,58344.0,58343.0,0.00265719]
[1725283969769,0.571106,58344.0,58343.0,0.00265719]
[1725283970275,1.685306,58344.0,58343.0,0.00265719]
[1725283970666,1.685306,58344.0,58343.0,1.9e-07]
[1725283970865,1.685306,58344.0,58328.0,0.05120846]
[1725283970866,0.085724,58329.0,58328.0,0.05120846]
[1725283971167,0.08573,58325.0,58323.0,0.41200846]
[1725283971369,0.08573,58325.0,58323.0,0.36578335]
[1725283972667,0.08573,58325.0,58323.0,0.36778335]
[1725283972868,0.085732,58324.0,58323.0,0.36778335]
[1725283973264,0.085732,58324.0,58323.0,0.36678335]
[1725283974174,0.088732,58324.0,58323.0,0.36778335]
[1725283975879,0.088732,58324.0,58323.0,0.36678335]
[1725283976072,0.092732,58324.0,58323.0,0.36778335]
[1725283976273,0.178464,58324.0,58323.0,0.3628]
[1725283976575,0.178464,58324.0,58323.0,0.002]
[1725283976576,0.378464,58324.0,58323.0,0.002]
[1725283979380,0.464196,58324.0,58323.0,0.002]
[1725283981174,1.698556,58324.0,58323.0,0.002]
[1725283984979,1.098556,58324.0,58323.0,0.002]
[1725283985874,0.384196,58324.0,58323.0,0.002]
[1725283986180,0.264196,58324.0,58323.0,0.002]
[1725283986977,0.092732,58324.0,58323.0,0.002]
[1725283987271,0.007,58324.0,58323.0,0.45691516]
[1725283987480,0.007,58324.0,58323.0,0.448533]
[1725283987681,0.007,58324.0,58323.0,1.562893]
[1725283988182,0.006,58324.0,58323.0,0.448533]
[1725283989184,0.006,58324.0,58323.0,0.962893]
[1725283989676,0.006,58324.0,58323.0,0.448533]
[1725283990482,0.006,58324.0,58323.0,0.45370675]
[1725283990980,0.002,58324.0,58323.0,0.45370675]
[1725283991983,0.087732,58324.0,58323.0,0.45370675]
[1725283992582,0.087732,58324.0,58323.0,0.36797375]
[1725283994377,0.087732,58324.0,58323.0,0.72877375]
[1725283995486,0.087732,58324.0,58323.0,0.73748191]
[1725283995487,0.002,58324.0,58323.0,0.73748191]
[1725283995787,0.002,58324.0,58323.0,0.82321491]
[1725283996182,0.002,58324.0,58323.0,1.33757491]
[1725283996980,0.002,58324.0,58323.0,1.93757491]
[1725283997487,0.002,58324.0,58323.0,1.33757491]
[1725283997686,0.002,58324.0,58323.0,1.38878337]
[1725283997884,0.002,58324.0,58323.0,1.33757491]
[1725283998086,0.085725,58329.0,58328.0,0.085726]
[1725283998277,0.085725,58329.0,58328.0,0.446926]
[1725283999485,0.00025719,58330.0,58329.0,0.085724]
[1725283999688,0.00025719,58330.0,58329.0,0.086124]
[1725284000279,0.0004,58344.0,58329.0,1.11472]
[1725284000603,0.085705,58342.0,58341.0,0.3608]
[1725284003087,0.085705,58342.0,58341.0,0.3618]
[1725284003476,0.085705,58342.0,58341.0,0.3608]
[1725284003678,0.085705,58342.0,58341.0,0.3618]
[1725284003876,0.085705,58342.0,58341.0,0.3628]
[1725284004089,0.085705,58342.0,58341.0,0.3678802]
[1725284004591,0.085705,58342.0,58341.0,0.3668802]
[1725284004782,0.085705,58342.0,58341.0,0.3678802]
[1725284007383,0.771315,58342.0,58341.0,0.3628]
[1725284007585,0.891315,58342.0,58341.0,0.3628]
[1725284007788,1.252115,58342.0,58341.0,0.002]
[1725284009890,1.852115,58342.0,58341.0,0.002]
[1725284010087,1.85704927,58342.0,58341.0,0.002]
[1725284010285,1.95164238,58342.0,58341.0,0.002]
[1725284010680,2.10537402,58342.0,58341.0,0.002]
[1725284010879,1.95164238,58342.0,58341.0,0.002]
[1725284011682,0.257139,58337.0,58336.0,1.9e-07]
[1725284011993,1.03293211,58337.0,58336.0,1.9e-07]
[1725284012193,2.14717211,58337.0,58336.0,1.9e-07]
[1725284012492,2.31791921,58337.0,58336.0,1.9e-07]
[1725284012686,2.16381921,58337.0,58336.0,1.9e-07]
[1725284012889,1.76381921,58337.0,58336.0,1.9e-07]
[1725284013097,0.79311911,58337.0,58336.0,1.9e-07]
[1725284013396,0.79411911,58337.0,58336.0,0.00100019]
[1725284014296,0.43431911,58337.0,58336.0,0.00200019]
[1725284014599,0.58797215,58337.0,58336.0,0.00200019]
[1725284014895,0.43431911,58337.0,58336.0,0.00200019]
[1725284015091,0.58797215,58337.0,58336.0,0.00200019]
[1725284015289,0.43431911,58337.0,58336.0,0.00200019]
[1725284015486,0.43432391,58337.0,58336.0,0.00200019]
[1725284017195,0.63432391,58337.0,58336.0,0.00200019]
[1725284017597,0.7881095,58337.0,58336.0,0.00200019]
[1725284017893,0.63432391,58337.0,58336.0,0.00200019]
[1725284018086,0.63432846,58337.0,58336.0,0.00200019]
[1725284018283,0.59234696,58337.0,58336.0,0.00200019]
[1725284018489,0.539726,58337.0,58336.0,0.00200019]
[1725284025602,0.78810625,58337.0,58336.0,0.00200019]
[1725284026797,0.74220625,58337.0,58336.0,0.00200019]
[1725284027694,0.74220591,58337.0,58336.0,0.00200019]
[1725284027892,0.58842666,58337.0,58336.0,0.00200019]
[1725284028095,0.6215197,58337.0,58336.0,0.00200019]
[1725284028703,0.67413985,58337.0,58336.0,0.00200019]
[1725284029900,0.6215197,58337.0,58336.0,0.00200019]
[1725284032706,0.62151978,58337.0,58336.0,0.00200019]
[1725284033601,0.579539,58337.0,58336.0,0.00200019]
[1725284037710,0.579539,58337.0,58336.0,0.00704678]
[1725284039701,0.293826,58337.0,58336.0,0.00704678]
[1725284041613,0.0024,58337.0,58336.0,0.00704678]
[1725284041812,0.0024,58337.0,58336.0,0.09276078]
[1725284041999,0.208113,58337.0,58336.0,0.00704678]
[1725284042607,0.293826,58337.0,58336.0,0.00200019]
[1725284043199,0.379539,58337.0,58336.0,0.00200019]
[1725284043501,0.379539,58337.0,58321.0,0.06827794]
[1725284043502,0.17146,58325.0,58320.0,0.05120846]
[1725284043708,0.17146,58325.0,58319.0,0.19390846]
[1725284043709,0.29186,58325.0,58319.0,0.19390846]
[1725284044013,0.37186,58325.0,58319.0,0.1427]
[1725284044504,0.37186,58325.0,58319.0,0.14295719]
[1725284045305,0.37186,58325.0,58324.0,0.3638]
[1725284046108,0.37186,58325.0,58324.0,0.3688]
[1725284046413,0.17186,58325.0,58324.0,0.3688]
[1725284047108,0.17486,58325.0,58324.0,0.3668]
[1725284047311,0.17786,58325.0,58324.0,0.3628]
[1725284047704,0.37786,58325.0,58324.0,0.3628]
[1725284047907,0.37786,58325.0,58324.0,0.3618]
[1725284048109,0.37786,58325.0,58324.0,0.3628]
[1725284048504,0.41984658,58325.0,58324.0,0.3628]
[1725284049215,0.5566253,58325.0,58324.0,0.002]
[1725284049400,0.52884658,58325.0,58324.0,0.002]
[1725284050311,0.52884938,58325.0,58324.0,0.002]
[1725284050616,0.61457938,58325.0,58324.0,0.002]
[1725284051309,0.61457938,58325.0,58319.0,0.00025719]
[1725284051310,0.457214,58320.0,58319.0,0.00025719]
[1725284051512,0.81599371,58320.0,58319.0,0.00025719]
[1725284051814,0.66223955,58320.0,58319.0,0.00025719]
[1725284052310,0.085758,58306.0,58305.0,0.3608]
[1725284052513,0.171916,58306.0,58305.0,0.3608]
[1725284052716,0.170916,58306.0,58305.0,0.3608]
[1725284052902,0.169916,58306.0,58305.0,0.3608]
[1725284053100,0.2895494,58306.0,58305.0,0.3608]
[1725284053302,0.169916,58306.0,58305.0,0.3608]
[1725284053498,0.169916,58306.0,58305.0,0.3668]
[1725284054123,0.302916,58306.0,58305.0,0.3618]
[1725284054415,0.302916,58306.0,58305.0,0.005]
[1725284054416,0.42232366,58306.0,58305.0,0.005]
[1725284054618,0.302916,58306.0,58305.0,0.005]
[1725284054997,0.34491918,58306.0,58305.0,0.005]
[1725284055198,0.42624012,58306.0,58305.0,0.002]
[1725284055403,0.42624012,58306.0,58300.0,0.00025719]
[1725284055404,0.171532,58301.0,58300.0,0.00025719]
[1725284055612,0.732732,58301.0,58300.0,0.00025719]
[1725284056014,0.862732,58301.0,58300.0,0.00025719]
[1725284056426,0.947498,58301.0,58300.0,0.00025719]
[1725284057716,0.952498,58301.0,58300.0,0.00125719]
[1725284057905,0.952498,58301.0,58300.0,0.00225719]
[1725284058111,0.957498,58301.0,58300.0,0.00225719]
[1725284058511,0.871732,58301.0,58300.0,0.00225719]
[1725284062013,0.957498,58301.0,58300.0,0.00225719]
[1725284063518,0.957498,58301.0,58289.0,0.002]
[1725284063519,0.257346,58290.0,58289.0,1e-06]
[1725284063819,0.938146,58290.0,58289.0,1e-06]
[1725284064408,0.986646,58290.0,58289.0,1e-06]
[1725284064816,0.991646,58290.0,58289.0,1e-06]
[1725284065211,2.106326,58290.0,58289.0,1e-06]
[1725284065607,0.171578,58285.0,58284.0,0.00025719]
[1725284065822,0.852378,58285.0,58284.0,0.00025719]
[1725284066313,0.171602,58277.0,58276.0,0.0454]
[1725284066517,0.171602,58277.0,58272.0,0.0455]
[1725284066518,0.085807,58273.0,58272.0,0.0455]
[1725284066714,0.371614,58273.0,58272.0,0.0455]
[1725284067215,0.370614,58273.0,58272.0,0.0455]
[1725284067520,0.284807,58273.0,58272.0,0.0455]
[1725284068021,0.283807,58273.0,58272.0,0.0475]
[1725284068817,0.283807,58273.0,58272.0,0.0485]
[1725284069716,0.283807,58273.0,58272.0,0.003]
[1725284070321,0.369614,58273.0,58272.0,0.003]
[1725284071118,0.369614,58273.0,58272.0,1e-06]
[1725284071323,0.369614,58273.0,58260.0,0.41364846]
[1725284071324,0.17164,58264.0,58260.0,0.36244]
[1725284071523,0.24328297,58264.0,58260.0,0.3608]
[1725284071910,0.171648,58261.0,58249.0,0.3608]
[1725284072124,0.2004,58254.0,58251.0,0.0474]
[1725284072313,0.085847,58246.0,58245.0,0.3608]
[1725284072523,0.2,58246.0,58245.0,0.36584656]
[1725284072713,0.286247,58246.0,58245.0,0.36584656]
[1725284072919,0.285847,58246.0,58245.0,0.36584656]
[1725284073214,0.285847,58246.0,58243.0,0.0474]
[1725284073215,0.08585,58244.0,58243.0,0.0474]
[1725284073418,0.08625,58244.0,58243.0,0.0474]
[1725284073626,0.08525,58244.0,58243.0,0.0474]
[1725284074221,0.08525,58244.0,58236.0,0.36597171]
[1725284074222,0.0004,58244.0,58236.0,0.00517171]
[1725284074420,0.20501111,58246.0,58245.0,0.0046]
[1725284074421,0.00601111,58246.0,58245.0,0.0046]
[1725284074627,0.20601111,58246.0,58245.0,0.0046]
[1725284074920,0.29085811,58246.0,58239.0,0.0457]
[1725284075225,0.29085811,58246.0,58243.0,0.005]
[1725284075226,0.08685,58244.0,58243.0,0.005]
[1725284075522,0.08785,58244.0,58243.0,0.005]
[1725284076227,0.28785,58244.0,58243.0,0.005]
[1725284076724,0.08586,58237.0,58236.0,0.0004]
[1725284076926,0.64666,58237.0,58236.0,0.0004]
[1725284077115,0.73252,58237.0,58236.0,0.0004]
[1725284077316,0.72852,58237.0,58236.0,0.0004]
[1725284077512,0.72752,58237.0,58236.0,0.0004]
[1725284077722,1.84268,58237.0,58236.0,0.0004]
[1725284078124,1.84468,58237.0,58236.0,0.0104]
[1725284078326,1.97468,58237.0,58236.0,0.0104]
[1725284078728,1.97368,58237.0,58236.0,0.0044]
[1725284078918,0.085875,58227.0,58226.0,0.0479]
[1725284079119,0.2,58227.0,58226.0,0.0479]
[1725284079526,0.285875,58227.0,58226.0,0.0479]
[1725284079828,0.285869,58231.0,58226.0,0.0479]
[1725284080417,0.285869,58231.0,58230.0,0.3608]
[1725284080418,0.2,58231.0,58230.0,0.3608]
[1725284081328,0.202,58231.0,58230.0,0.3608]
[1725284081522,0.002,58231.0,58230.0,0.3608]
[1725284082127,0.002,58231.0,58230.0,0.44867]
[1725284082324,0.202,58231.0,58230.0,0.3628]
[1725284083227,0.202,58231.0,58230.0,1.56387]
[1725284083228,0.002,58231.0,58230.0,1.56387]
[1725284083434,0.00025742,58232.0,58231.0,0.085869]
[1725284083822,0.00025742,58232.0,58231.0,0.601069]
[1725284084027,0.00025742,58232.0,58231.0,0.085869]
[1725284084723,0.00025742,58232.0,58231.0,0.14007746]
[1725284084923,0.00025742,58232.0,58231.0,0.088869]
[1725284085129,0.00125742,58232.0,58231.0,0.14007746]
[1725284085724,0.00125742,58232.0,58231.0,0.604069]
[1725284085935,0.2,58244.0,58231.0,1.3182]
[1725284086231,0.2,58244.0,58240.0,0.3608]
[1725284086232,0.085853,58242.0,58240.0,0.3608]
[1725284086433,0.085847,58246.0,58243.0,0.08585]
[1725284086627,0.285845,58248.0,58245.0,0.3608]
[1725284086836,0.085847,58246.0,58245.0,0.3608]
[1725284088239,0.107847,58246.0,58245.0,0.3608]
[1725284089129,0.107847,58246.0,58245.0,0.446648]
[1725284089320,0.022,58246.0,58245.0,0.446648]
[1725284089927,0.022,58246.0,58245.0,0.961728]
[1725284090622,0.022,58246.0,58245.0,0.446648]
[1725284090818,0.022,58246.0,58245.0,0.961728]
[1725284091021,0.022,58246.0,58245.0,0.446648]
[1725284092232,0.022,58246.0,58245.0,0.49754228]
[1725284092830,0.022,58246.0,58245.0,0.446648]
[1725284093135,0.022,58246.0,58245.0,0.49754228]
[1725284093833,0.022,58246.0,58245.0,0.446648]
[1725284095333,0.022,58246.0,58245.0,0.51492594]
[1725284096432,0.022,58246.0,58245.0,0.446648]
[1725284097442,0.022,58246.0,58245.0,0.45173703]
[1725284099270,0.022,58246.0,58245.0,0.5374253]
[1725284099437,0.022,58246.0,58245.0,0.58255226]
[1725284100633,0.022,58246.0,58245.0,0.58254933]
[1725284100835,0.022,58246.0,58245.0,0.45173703]
[1725284101243,0.022,58246.0,58245.0,0.60597282]
[1725284101544,0.022,58246.0,58245.0,0.52017363]
[1725284102042,0.107847,58246.0,58245.0,0.52017363]
[1725284102237,0.107847,58246.0,58245.0,0.45173703]
[1725284103042,0.107847,58246.0,58245.0,0.50307118]
[1725284103239,0.107847,58246.0,58245.0,0.45173703]
[1725284103449,0.022,58246.0,58245.0,1.61815118]
[1725284103639,0.022,58246.0,58245.0,1.56681703]
[1725284104245,0.022,58246.0,58245.0,1.65266503]
[1725284104444,0.00025742,58252.0,58251.0,0.171678]
[1725284104648,0.00505337,58268.0,58257.0,0.2]
[1725284104649,0.085829,58258.0,58257.0,0.2]
[1725284104842,0.085829,58258.0,58257.0,0.5608]
[1725284105140,0.085827,58262.0,58257.0,1.67576]
[1725284105442,0.0465,58269.0,58260.0,0.3608]
[1725284105443,0.085824,58261.0,58260.0,0.3608]
[1725284106142,0.171648,58261.0,58260.0,0.3608]
[1725284106749,0.183648,58261.0,58260.0,0.3618]
[1725284107843,0.195648,58261.0,58260.0,0.3628]
[1725284108538,0.195648,58261.0,58260.0,0.41407716]
[1725284109237,0.195648,58261.0,58260.0,0.3628]
[1725284110449,0.315648,58261.0,58260.0,0.3628]
[1725284110838,0.315648,58261.0,58260.0,0.002]
[1725284111135,0.195648,58261.0,58260.0,0.002]
[1725284111647,0.109824,58261.0,58260.0,0.002]
[1725284112544,0.024,58261.0,58260.0,0.002]
[1725284112734,0.024,58261.0,58260.0,0.087826]
[1725284113750,0.024,58261.0,58260.0,0.24210534]
[1725284113948,0.024,58261.0,58260.0,0.178526]
[1725284114151,0.024,58261.0,58260.0,0.133126]
[1725284114549,0.024,58261.0,58260.0,0.20156558]
[1725284114751,0.024,58261.0,58260.0,0.20674255]
[1725284115147,0.024,58261.0,58260.0,0.13830297]
[1725284115346,0.024,58261.0,58260.0,0.20674389]
[1725284115955,0.024,58261.0,58260.0,0.13830297]
[1725284116454,0.00025742,58265.0,58264.0,0.08582]
[1725284116671,0.00025742,58265.0,58264.0,0.44662]
[1725284117949,0.08607642,58265.0,58264.0,0.44662]
[1725284118150,0.10207642,58265.0,58264.0,0.44862]
[1725284118352,0.10207642,58265.0,58264.0,0.49994728]
[1725284118744,0.10207642,58265.0,58264.0,0.41412728]
[1725284119250,0.38189542,58265.0,58264.0,0.3628]
[1725284120454,0.29607642,58265.0,58264.0,0.3628]
[1725284120855,0.01025742,58265.0,58264.0,0.44862]
[1725284121051,0.01025742,58265.0,58264.0,0.49582]
[1725284121251,0.09807642,58265.0,58264.0,0.49682]
[1725284121447,0.09807642,58265.0,58264.0,0.44862]
[1725284122150,0.08807642,58265.0,58264.0,0.44762]
[1725284122352,0.09807642,58265.0,58264.0,0.44862]
[1725284123150,0.18389542,58265.0,58264.0,0.3628]
[1725284123877,0.09807642,58265.0,58264.0,0.44862]
[1725284126160,0.18389542,58265.0,58264.0,0.3628]
[1725284127558,0.50888787,58265.0,58264.0,0.002]
[1725284127758,0.43174561,58265.0,58264.0,0.002]
[1725284128454,0.34592661,58265.0,58264.0,0.002]
[1725284128653,0.50389542,58265.0,58264.0,0.002]
[1725284129666,0.21807642,58265.0,58264.0,0.002]
[1725284129961,0.01225742,58265.0,58264.0,0.44862]
[1725284130350,0.01225742,58265.0,58264.0,0.45367015]
[1725284132266,0.01225742,58265.0,58264.0,0.50499743]
[1725284132651,0.01225742,58265.0,58264.0,0.45367015]
[1725284135156,0.09807642,58265.0,58264.0,0.44862]
[1725284135356,0.09807642,58265.0,58264.0,0.3628]
[1725284137358,0.09807642,58265.0,58264.0,0.41422295]
[1725284137958,0.09807642,58265.0,58264.0,0.3628]
[1725284138360,0.18389542,58265.0,58264.0,0.3628]
[1725284140365,0.09807642,58265.0,58264.0,0.3628]
[1725284141161,0.18389542,58265.0,58264.0,0.3628]
[1725284141760,0.09807642,58265.0,58264.0,0.3628]
[1725284141964,0.18389542,58265.0,58264.0,0.3628]
[1725284142376,0.14010375,58265.0,58264.0,0.3628]
[1725284142862,0.22592275,58265.0,58264.0,0.3628]
[1725284143462,0.14010375,58265.0,58264.0,0.3628]
[1725284144269,0.05428475,58265.0,58264.0,0.3628]
[1725284144569,0.09807642,58265.0,58264.0,0.44862]
[1725284146460,0.09707642,58265.0,58264.0,0.44862]
[1725284146663,0.01125742,58265.0,58264.0,0.44862]
[1725284146858,0.01125742,58265.0,58264.0,1.1635]
[1725284147158,0.00925742,58265.0,58264.0,1.1625]
[1725284147479,0.085797,58280.0,58279.0,0.085798]
[1725284148269,0.085797,58280.0,58279.0,0.15435062]
[1725284148576,0.085797,58280.0,58279.0,0.06855262]
[1725284149166,0.093797,58280.0,58279.0,0.06955262]
[1725284149476,0.093797,58280.0,58279.0,0.086798]
[1725284149673,0.008,58280.0,58279.0,0.086798]
[1725284150067,0.008,58280.0,58279.0,0.286798]
[1725284150264,0.008,58280.0,58279.0,0.335598]
[1725284150678,0.008,58280.0,58279.0,0.40415062]
[1725284150974,0.008,58280.0,58279.0,0.335598]
[1725284151370,0.008,58280.0,58279.0,0.40304291]
[1725284151563,0.008,58280.0,58279.0,0.40404291]
[1725284151972,0.008,58280.0,58279.0,1.536156]
[1725284151973,0.00528642,58280.0,58279.0,1.536156]
[1725284152164,0.00528642,58280.0,58279.0,1.75264341]
[1725284152370,0.00528642,58280.0,58279.0,1.62164335]
[1725284152574,0.00528642,58280.0,58279.0,1.66687514]
[1725284153077,0.00528642,58280.0,58279.0,1.536156]
[1725284153581,0.00528642,58280.0,58279.0,0.936156]
[1725284153873,0.00528642,58280.0,58279.0,1.536156]
[1725284154871,0.00528642,58280.0,58279.0,1.535156]
[1725284155074,0.00528642,58280.0,58279.0,1.544156]